lending/lending_fUSD_20260411
["ID","MTS","AMOUNT","RATE_DAILY","PERIOD"]
[420281043,1775907102654,-151.0,0.00015068,2]
[420281044,1775907102668,-151.0,0.00015068,2]
[420281045,1775907102679,-151.0,0.00015068,2]
[420281046,1775907102688,-151.0,0.00015068,2]
[420281047,1775907102698,-151.0,0.00015068,2]
[420281048,1775907102710,-151.0,0.00015068,2]
[420281049,1775907102722,-800.0,0.00015068,2]
[420281050,1775907102731,-832.59,0.00015099,2]
[420281051,1775907102740,-500.0,0.00015099,2]
[420281052,1775907102750,-1128.58,0.00015099,2]
[420281053,1775907102761,-63647.3708081,0.000151,2]
[420281054,1775907102771,-279.3717,0.000151,2]
[420281055,1775907102780,-1149.32808553,0.0001511,2]
[420281056,1775907102790,-267.0,0.00015131,3]
[420281057,1775907102800,-1007.25,0.000152,2]
[420281058,1775907102810,-251.8,0.000152,2]
[420281059,1775907102819,-251.8,0.000152,2]
[420281060,1775907102829,-551.1,0.000152,2]
[420281061,1775907102839,-1002.48,0.000152,2]
[420281062,1775907102849,-250.62,0.000152,2]
[420281063,1775907102858,-250.62,0.000152,2]
[420281064,1775907102868,-250.62,0.000152,2]
[420281065,1775907102878,-10000.0,0.00015205,2]
[420281066,1775907102888,-2000.0,0.0001521,2]
[420281067,1775907102899,-1500.0,0.00015257,2]
[420281068,1775907102908,-1501.039701,0.00015257,2]
[420281069,1775907102918,-502.444901,0.00015264,7]
[420281070,1775907102928,-582.95,0.00015267,2]
[420281071,1775907102938,-9035.0,0.00015267,2]
[420281072,1775907102948,-1000.0,0.00015274,7]
[420281073,1775907102957,-1466.37,0.00015285,2]
[420281074,1775907102967,-306.78019699,0.0001529,2]
[420281075,1775907102976,-2003.2,0.000153,2]
[420281076,1775907102985,-2000.0,0.0001531,2]
[420281077,1775907102995,-1054.05,0.0001531,2]
[420281078,1775907103005,-3967.24,0.0001531,2]
[420281079,1775907103013,-202.43506709,0.00015342,2]
[420281080,1775907103023,-1255.69750177,0.00015342,2]
[420281081,1775907103032,-475.33699989,0.00015342,2]
[420281082,1775907103041,-1001.27329872,0.00015342,2]
[420281083,1775907103051,-2000.0,0.00015342,2]
[420281084,1775907103060,-2001.92382274,0.00015342,2]
[420281085,1775907103070,-352.18651515,0.00015342,2]
[420281086,1775907103079,-832.8749747,0.00015342,2]
[420281087,1775907103089,-1574.0,0.0001536,2]
[420281088,1775907103098,-1574.0,0.0001536,2]
[420281089,1775907103108,-1574.0,0.0001536,2]
[420281090,1775907103119,-163.0,0.0001536,2]
[420281091,1775907103130,-1574.0,0.0001536,2]
[420281092,1775907103139,-1583.0,0.0001536,2]
[420281093,1775907103149,-350.0,0.00015387,2]
[420281094,1775907103159,-350.0,0.00015387,2]
[420281095,1775907103170,-350.0,0.00015387,2]
[420281096,1775907103180,-350.0,0.00015387,2]
[420281097,1775907103190,-1116.0,0.00015387,2]
[420281098,1775907103200,-2711.94332239,0.000154,2]
[420281099,1775907103212,-512.9709853,0.000154,2]
[420281100,1775907103223,-2000.0,0.0001541,2]
[420281101,1775907103233,-224.533999,0.00015426,2]
[420281102,1775907103242,-300.0,0.00015426,2]
[420281103,1775907103255,-300.0,0.00015426,2]
[420281104,1775907103265,-300.0,0.00015426,2]
[420281105,1775907103275,-300.0,0.00015426,2]
[420281106,1775907103285,-300.0,0.00015426,2]
[420281107,1775907103300,-300.0,0.00015426,2]
[420281108,1775907103312,-300.0,0.00015426,2]
[420281109,1775907103321,-300.0,0.00015426,2]
[420281110,1775907103338,-277.0,0.00015426,2]
[420281111,1775907103348,-152.0,0.00015442,6]
[420281112,1775907103358,-153.58319472,0.00015442,5]
[420281113,1775907103373,-500.0,0.00015459,2]
[420281114,1775907103388,-5010.0,0.00015463,7]
[420281115,1775907103398,-154.0,0.00015474,3]
[420281116,1775907103414,-165.0,0.00015474,3]
[420281117,1775907103429,-285.90913035,0.000155,2]
[420281118,1775907103438,-4000.0,0.00015507,2]
[420281119,1775907103455,-350.0,0.00015507,2]
[420281120,1775907103472,-350.0,0.00015507,2]
[420281121,1775907103482,-350.0,0.00015507,2]
[420281122,1775907103507,-350.0,0.00015507,2]
[420281123,1775907103518,-350.0,0.00015507,2]
[420281124,1775907103533,-350.0,0.00015507,2]
[420281125,1775907103550,-350.0,0.00015507,2]
[420281126,1775907103562,-350.0,0.00015507,2]
[420281127,1775907103582,-289.0,0.00015507,2]
[420281128,1775907103592,-2000.0,0.0001551,2]
[420281129,1775907103606,-254.82,0.0001554,2]
[420281130,1775907103620,-250.0,0.0001554,2]
[420281131,1775907103633,-250.0,0.0001554,2]
[420281132,1775907103646,-250.0,0.0001554,2]
[420281133,1775907103659,-250.0,0.0001554,2]
[420281134,1775907103671,-250.0,0.0001554,2]
[420281135,1775907103685,-250.0,0.0001554,2]
[420281136,1775907103701,-250.0,0.0001554,2]
[420281137,1775907103712,-350.0,0.0001554,2]
[420281138,1775907103728,-1600.0,0.0001556,2]
[420281139,1775907103743,-25000.0,0.00015564,3]
[420281140,1775907103754,-1500.0,0.00015568,2]
[420281141,1775907103784,-1500.851641,0.00015568,2]
[420281142,1775907103805,-621.78829552,0.00015568,2]
[420281143,1775907103900,-1776.30922209,0.0001557,2]
[420281144,1775907104058,-262.95121217,0.0001557,2]
[420281145,1775907104188,-306.36852548,0.00015573,3]
[420281146,1775907104228,-25000.0,0.00015573,3]
[420281147,1775907104255,-25000.0,0.00015573,3]
[420281148,1775907104284,-270.62505689,0.00015573,3]
[420281149,1775907104302,-600.0,0.00015599,2]
[420281150,1775907104337,-600.0,0.00015599,2]
[420281151,1775907104387,-600.0,0.00015599,2]
[420281152,1775907104407,-600.0,0.00015599,2]
[420281153,1775907104426,-600.0,0.00015599,2]
[420281154,1775907104442,-600.0,0.00015599,2]
[420281155,1775907104453,-600.0,0.00015599,2]
[420281156,1775907104470,-600.0,0.00015599,2]
[420281157,1775907104483,-600.0,0.00015599,2]
[420281158,1775907104493,-313.0,0.00015599,2]
[420281159,1775907104503,-300.0,0.00015599,2]
[420281160,1775907104517,-519.95042825,0.00015599,7]
[420281161,1775907104533,-832.59,0.00015599,2]
[420281162,1775907104543,-832.59,0.00015599,2]
[420281163,1775907104553,-832.59,0.00015599,2]
[420281164,1775907104563,-832.59,0.00015599,2]
[420281165,1775907104576,-832.59,0.00015599,2]
[420281166,1775907104586,-832.59232065,0.00015599,2]
[420281167,1775907104596,-1128.58,0.00015599,2]
[420281168,1775907104607,-1128.58,0.00015599,2]
[420281169,1775907104620,-1128.58,0.00015599,2]
[420281170,1775907104631,-1128.58,0.00015599,2]
[420281171,1775907104640,-1128.58,0.00015599,2]
[420281172,1775907104650,-1128.78755548,0.00015599,2]
[420281173,1775907104660,-513173.59771399,0.000156,2]
[420281174,1775907104670,-4387208.86320235,0.000156,2]
[420281175,1775907104679,-500.0,0.000156,2]
[420281176,1775907104689,-500.0,0.000156,2]
[420281177,1775907104699,-500.0,0.000156,2]
[420281178,1775907104708,-500.0,0.000156,2]
[420281179,1775907104719,-500.0,0.000156,2]
[420281180,1775907104729,-500.0,0.000156,2]
[420281181,1775907104738,-500.0,0.000156,2]
[420281182,1775907104749,-500.0,0.000156,2]
[420281183,1775907104759,-500.0,0.000156,2]
[420281184,1775907104769,-500.0,0.000156,2]
[420281185,1775907104778,-500.0,0.000156,2]
[420281186,1775907104788,-500.0,0.000156,2]
[420281187,1775907104797,-500.0,0.000156,2]
[420281188,1775907104807,-500.0,0.000156,2]
[420281189,1775907104817,-500.0,0.000156,2]
[420281190,1775907104827,-500.0,0.000156,2]
[420281191,1775907104836,-500.0,0.000156,2]
[420281192,1775907104846,-500.0,0.000156,2]
[420281193,1775907104855,-201.1,0.000156,2]
[420281194,1775907104865,-1751632.57737947,0.000156,2]
[420281195,1775907104875,-1571.0,0.000156,2]
[420281196,1775907104884,-162.0,0.000156,2]
[420281197,1775907104893,-1574.0,0.000156,2]
[420281198,1775907104902,-252189.48535332,0.000156,2]
[420281199,1775907104911,-90054.88995433,0.000156,3]
[420281200,1775907104921,-1300.0,0.000156,5]
[420281201,1775907104931,-2000.0,0.0001561,2]
[420281202,1775907104940,-162.0,0.0001568,2]
[420281203,1775907104949,-162.0,0.0001568,2]
[420281204,1775907104958,-162.0,0.0001568,2]
[420281205,1775907104967,-1574.0,0.0001568,2]
[420281206,1775907104977,-1574.0,0.0001568,2]
[420281207,1775907104986,-1151.0,0.0001568,2]
[420281208,1775907104996,-15729.19880037,0.000157,2]
[420281209,1775907105006,-500.0,0.000157,2]
[420281210,1775907105015,-500.0,0.000157,2]
[420281211,1775907105025,-500.0,0.000157,2]
[420281212,1775907105327,-500.0,0.000157,2]
[420281213,1775907105340,-500.0,0.000157,2]
[420281214,1775907105358,-500.0,0.000157,2]
[420281215,1775907105379,-500.0,0.000157,2]
[420281216,1775907105392,-500.0,0.000157,2]
[420281217,1775907105413,-500.0,0.000157,2]
[420281218,1775907105430,-1300.0,0.000157,5]
[420281219,1775907105453,-2000.0,0.0001571,2]
[420281220,1775907105476,-250.0,0.00015753,2]
[420281221,1775907105501,-250.0,0.00015753,2]
[420281222,1775907105519,-250.0,0.00015753,2]
[420281223,1775907105534,-250.0,0.00015753,2]
[420281224,1775907105567,-250.0,0.00015753,2]
[420281225,1775907105582,-250.0,0.00015753,2]
[420281226,1775907105612,-250.0,0.00015753,2]
[420281227,1775907105624,-250.0,0.00015753,2]
[420281228,1775907105645,-250.0,0.00015753,2]
[420281229,1775907105681,-150.0,0.00015753,2]
[420281230,1775907105720,-2763.57,0.00015753,2]
[420281231,1775907105750,-3000.000001,0.0001578,2]
[420281232,1775907105771,-4000.0,0.000158,2]
[420281233,1775907105799,-1333.65,0.000158,10]
[420281234,1775907105813,-1300.0,0.000158,5]
[420281235,1775907105831,-2260.74592554,0.00015807,2]
[420281236,1775907105849,-2000.0,0.0001581,2]
[420281237,1775907105866,-267.0,0.00015817,3]
[420281238,1775907105888,-506.0,0.00015829,4]
[420281239,1775907105904,-500.0,0.0001589,2]
[420281240,1775907105919,-500.0,0.0001589,2]
[420281241,1775907105932,-500.0,0.0001589,2]
[420281242,1775907105945,-500.0,0.0001589,2]
[420281243,1775907105957,-500.0,0.0001589,2]
[420281244,1775907105969,-500.0,0.0001589,2]
[420281245,1775907105978,-500.0,0.0001589,2]
[420281246,1775907105991,-500.0,0.0001589,2]
[420281247,1775907106000,-500.0,0.0001589,2]
[420281248,1775907106010,-500.0,0.0001589,2]
[420281249,1775907106021,-500.0,0.0001589,2]
[420281250,1775907106031,-500.0,0.0001589,2]
[420281251,1775907106043,-500.0,0.0001589,2]
[420281252,1775907106056,-500.0,0.0001589,2]
[420281253,1775907106067,-500.0,0.0001589,2]
[420281254,1775907106082,-500.0,0.0001589,2]
[420281255,1775907106095,-500.0,0.0001589,2]
[420281256,1775907106107,-500.0,0.0001589,2]
[420281257,1775907106122,-500.0,0.0001589,2]
[420281258,1775907106131,-500.0,0.0001589,2]
[420281259,1775907106146,-500.0,0.0001589,2]
[420281260,1775907106164,-500.0,0.0001589,2]
[420281261,1775907106176,-500.0,0.0001589,2]
[420281262,1775907106189,-533.30698794,0.0001589,2]
[420281263,1775907106203,-2000.0,0.0001589,2]
[420281264,1775907106231,-778.1342589,0.0001589,2]
[420281265,1775907106243,-1500.0,0.00015891,2]
[420281266,1775907106264,-2600.0,0.00015891,2]
[420281267,1775907106290,-4000.0,0.00015895,2]
[420281268,1775907106323,-1957.0,0.000159,5]
[420281269,1775907106340,-221.6759081,0.000159,2]
[420281270,1775907106369,-16041.98876846,0.000159,2]
[420281271,1775907106382,-11944.54650553,0.000159,2]
[420281272,1775907106413,-2000.0,0.0001591,2]
[420281273,1775907106429,-2193.86,0.00015945,2]
[420281274,1775907106448,-4268.05,0.00015958,2]
[420281275,1775907106470,-500.0,0.00015959,2]
[420281276,1775907106480,-2000.0,0.00015959,2]
[420281277,1775907106490,-2997.9,0.00015989,8]
[420281278,1775907106519,-500.0,0.0001599,2]
[420281279,1775907106532,-2472.0,0.00015994,2]
[420281280,1775907106557,-300.0,0.00015999,2]
[420281281,1775907106568,-500.0,0.00015999,2]
[420281282,1775907106588,-500.0,0.00015999,2]
[420281283,1775907106607,-396.77262013,0.00015999,2]
[420281284,1775907106620,-2928.83570988,0.00015999,2]
[420281285,1775907106647,-673696.16110964,0.00016,2]
[420281286,1775907106657,-500628.18670246,0.00016,2]
[420281287,1775907106685,-255192.16919091,0.00016,2]
[420281288,1775907106696,-9000.0,0.00016,2]
[420281289,1775907106713,-750288.84912798,0.00016,2]
[420281290,1775907106739,-3310.42638366,0.00016,2]
[420281291,1775907106750,-394506.79492386,0.00016,2]
[420281292,1775907106776,-1333768.76807798,0.00016,2]
[420281293,1775907106785,-1020270.11516305,0.00016,2]
[420281294,1775907106795,-128251.69602324,0.00016,2]
[420281295,1775907106815,-455912.74429086,0.00016,2]
[420281296,1775907106830,-302416.50295465,0.00016,2]
[420281297,1775907106843,-19739.83899091,0.00016,10]
[420281298,1775907106860,-500.0,0.00016,2]
[420281299,1775907106876,-500.0,0.00016,2]
[420281300,1775907106886,-579769.20525331,0.00016,2]
[420281301,1775907106899,-2163.0,0.00016,2]
[420281302,1775907106911,-397928.92524587,0.00016,2]
[420281303,1775907106920,-193339.21502822,0.00016,2]
[420281304,1775907106929,-150.0,0.00016,4]
[420281305,1775907106944,-1269363.79001703,0.00016,2]
[420281306,1775907106956,-415575.501824,0.00016,2]
[420281307,1775907106966,-541907.48561342,0.00016,2]
[420281308,1775907106975,-170848.20743276,0.00016,2]
[420281309,1775907106989,-350884.92785927,0.00016,2]
[420281310,1775907107003,-179023.62035522,0.00016,2]
[420281311,1775907107013,-351932.21395832,0.00016,2]
[420281312,1775907107023,-6005645.97565965,0.00016,2]
[420281313,1775907107032,-1661549.91074744,0.00016,2]
[420281314,1775907107044,-2381706.17952199,0.00016,2]
[420281315,1775907107054,-475721.51686742,0.00016,2]
[420281316,1775907107064,-241458.53687476,0.00016,2]
[420281317,1775907107072,-1734593.31704371,0.00016,2]
[420281318,1775907107082,-118598.54873314,0.00016,2]
[420281319,1775907107092,-158.0,0.00016,2]
[420281320,1775907107103,-605.0,0.00016,2]
[420281321,1775907107112,-1399617.41566404,0.00016,2]
[420281322,1775907107122,-104439.10488742,0.00016,2]
[420281323,1775907107133,-1714609.18636519,0.00016,2]
[420281324,1775907107144,-2046632.25416015,0.00016,2]
[420281325,1775907107154,-325.0,0.00016,5]
[420281326,1775907107164,-667778.79425651,0.00016,2]
[420281327,1775907107175,-153.68,0.00016,2]
[420281328,1775907107184,-2000.0,0.00016,2]
[420281329,1775907107194,-630.04396759,0.00016,2]
[420281330,1775907107204,-2412.0462638,0.00016,2]
[420281331,1775907107214,-13610.8281,0.00016,2]
[420281332,1775907107224,-160.0,0.00016,3]
[420281333,1775907107233,-2256.65557207,0.00016,2]
[420281334,1775907107244,-626.52234498,0.00016,2]
[420281335,1775907107253,-200.351499,0.00016,2]
[420281336,1775907107264,-2000.0,0.0001601,2]
[420281337,1775907107273,-2000.0,0.0001601,2]
[420281338,1775907107282,-2000.0,0.0001602,2]
[420281339,1775907107292,-9874.0,0.00016025,2]
[420281340,1775907107302,-198.957169,0.00016029,7]
[420281341,1775907107312,-2437.17866,0.0001603,2]
[420281342,1775907107322,-2003.2220221,0.000161,2]
[420281343,1775907107331,-174.9928,0.000161,2]
[420281344,1775907107341,-174.9928,0.000161,2]
[420281345,1775907107352,-174.9928,0.000161,2]
[420281346,1775907107362,-174.9928,0.000161,2]
[420281347,1775907107371,-174.9928,0.000161,2]
[420281348,1775907107381,-174.9928,0.000161,2]
[420281349,1775907107392,-2003.46944,0.000161,2]
[420281350,1775907107401,-151.0,0.000161,2]
[420281351,1775907107410,-199.9040102,0.000161,7]
[420281352,1775907107419,-12077.44160666,0.000161,3]
[420281353,1775907107428,-63960.40965555,0.000161,2]
[420281354,1775907107438,-150.0,0.000161,2]
[420281355,1775907107448,-150.0,0.000161,2]
[420281356,1775907107458,-279.63890886,0.000161,2]
[420281357,1775907107467,-157.11065417,0.000161,2]
[420281358,1775907107476,-314.28159982,0.000161,2]
[420281359,1775907107488,-626.52234498,0.000161,2]
[420281360,1775907107501,-257.74207613,0.000161,2]
[420281361,1775907107512,-2000.0,0.0001611,2]
[420281362,1775907107523,-27100.79590895,0.0001611,15]
[420281363,1775907107536,-258.73,0.00016116,2]
[420281364,1775907107547,-258.73,0.00016116,2]
[420281365,1775907107560,-258.73,0.00016116,2]
[420281366,1775907107572,-258.73,0.00016116,2]
[420281367,1775907107587,-258.73,0.00016116,2]
[420281368,1775907107597,-9999.99,0.00016116,2]
[420281369,1775907107610,-1842.03266331,0.00016118,2]
[420281370,1775907107631,-1116.0,0.00016156,2]
[420281371,1775907107641,-878.36541914,0.00016164,2]
[420281372,1775907107662,-160.0,0.00016199,3]
[420281373,1775907107679,-8750.0,0.000162,2]
[420281374,1775907107693,-638.33,0.000162,2]
[420281375,1775907107732,-626.52234498,0.000162,2]
[420281376,1775907107741,-174.71005469,0.0001621,2]
[420281377,1775907107775,-500.0,0.0001621,2]
[420281378,1775907107784,-200.0,0.0001621,2]
[420281379,1775907107805,-500.0,0.0001621,2]
[420281380,1775907107828,-500.0,0.0001621,2]
[420281381,1775907107845,-500.0,0.0001621,2]
[420281382,1775907107869,-330.16558325,0.0001621,2]
[420281383,1775907107895,-3508.10691758,0.0001621,2]
[420281384,1775907107915,-3508.10691758,0.0001621,2]
[420281385,1775907107944,-3508.10691758,0.0001621,2]
[420281386,1775907107959,-200.0,0.0001621,2]
[420281387,1775907108015,-200.0,0.0001621,2]
[420281388,1775907108072,-4000.0,0.00016282,2]
[420281389,1775907108175,-8750.0,0.000163,2]
[420281390,1775907108259,-200.0,0.0001634,2]
[420281391,1775907108308,-9584.0,0.00016358,2]
[420281392,1775907108352,-200.0,0.00016372,2]
[420281393,1775907108393,-200.0,0.00016372,2]
[420281394,1775907108447,-200.0,0.00016372,2]
[420281395,1775907108495,-2000.0,0.000164,2]
[420281396,1775907108526,-1139.15,0.00016438,2]
[420281397,1775907108557,-508.86,0.00016438,2]
[420281398,1775907108572,-1279.68,0.00016438,2]
[420281399,1775907108589,-1179.02,0.00016438,2]
[420281400,1775907108607,-1904.7,0.00016438,2]
[420281401,1775907108629,-1904.7,0.00016438,2]
[420281402,1775907108648,-9054.9,0.00016438,2]
[420281403,1775907108658,-1087.55,0.00016438,2]
[420281404,1775907108674,-500.0,0.00016438,2]
[420281405,1775907108687,-500.0,0.00016438,2]
[420281406,1775907108696,-500.0,0.00016438,2]
[420281407,1775907108707,-500.0,0.00016438,2]
[420281408,1775907108721,-500.0,0.00016438,2]
[420281409,1775907108731,-500.0,0.00016438,2]
[420281410,1775907108741,-500.0,0.00016438,2]
[420281411,1775907108751,-500.0,0.00016438,2]
[420281412,1775907108763,-500.0,0.00016438,2]
[420281413,1775907108772,-500.0,0.00016438,2]
[420281414,1775907108781,-500.0,0.00016438,2]
[420281415,1775907108791,-500.0,0.00016438,2]
[420281416,1775907108801,-500.0,0.00016438,2]
[420281417,1775907108811,-624.0,0.00016438,2]
[420281418,1775907108820,-2500.0,0.00016438,2]
[420281419,1775907108829,-2500.0,0.00016438,2]
[420281420,1775907108839,-2500.0,0.00016438,2]
[420281421,1775907108849,-2500.0,0.00016438,2]
[420281422,1775907108859,-2500.0,0.00016438,2]
[420281423,1775907108869,-2500.0,0.00016438,2]
[420281424,1775907108878,-2500.0,0.00016438,2]
[420281425,1775907108889,-2500.0,0.00016438,2]
[420281426,1775907108898,-2500.0,0.00016438,2]
[420281427,1775907108908,-2500.0,0.00016438,2]
[420281428,1775907108918,-2500.0,0.00016438,2]
[420281429,1775907108927,-2500.0,0.00016438,2]
[420281430,1775907108937,-2500.0,0.00016438,2]
[420281431,1775907108946,-2500.0,0.00016438,2]
[420281432,1775907108956,-2500.0,0.00016438,2]
[420281433,1775907108965,-2500.0,0.00016438,2]
[420281434,1775907108975,-2500.0,0.00016438,2]
[420281435,1775907108985,-2500.0,0.00016438,2]
[420281436,1775907108994,-2500.0,0.00016438,2]
[420281437,1775907109004,-2500.0,0.00016438,2]
[420281438,1775907109014,-2500.0,0.00016438,2]
[420281439,1775907109023,-2500.0,0.00016438,2]
[420281440,1775907109033,-2500.0,0.00016438,2]
[420281441,1775907109043,-2500.0,0.00016438,2]
[420281442,1775907109052,-2500.0,0.00016438,2]
[420281443,1775907109062,-2500.0,0.00016438,2]
[420281444,1775907109072,-266.3512326,0.00016438,2]
[420281445,1775907109082,-260.0,0.00016438,3]
[420281446,1775907109092,-229.14,0.00016438,2]
[420281447,1775907109103,-900.0,0.00016438,2]
[420281448,1775907109112,-157.287484,0.00016438,2]
[420281449,1775907109122,-300.0,0.00016438,3]
[420281450,1775907109132,-300.0,0.00016438,3]
[420281451,1775907109141,-300.0,0.00016438,3]
[420281452,1775907109152,-300.0,0.00016438,3]
[420281453,1775907109162,-300.0,0.00016438,3]
[420281454,1775907109172,-151.0,0.00016438,2]
[420281455,1775907109182,-151.0,0.00016438,2]
[420281456,1775907109191,-151.0,0.00016438,2]
[420281457,1775907109321,-151.0,0.00016438,2]
[420281458,1775907109343,-151.0,0.00016438,2]
[420281459,1775907109354,-151.0,0.00016438,2]
[420281460,1775907109363,-151.0,0.00016438,2]
[420281461,1775907109381,-151.0,0.00016438,2]
[420281462,1775907109398,-151.0,0.00016438,2]
[420281463,1775907109412,-151.0,0.00016438,2]
[420281464,1775907109438,-151.0,0.00016438,2]
[420281465,1775907109447,-151.0,0.00016438,2]
[420281466,1775907109469,-151.0,0.00016438,2]
[420281467,1775907109494,-151.0,0.00016438,2]
[420281468,1775907109513,-151.0,0.00016438,2]
[420281469,1775907109526,-151.0,0.00016438,2]
[420281470,1775907109546,-172.234883,0.00016438,2]
[420281471,1775907109566,-150.0,0.00016438,2]
[420281472,1775907109586,-533.900171,0.00016438,2]
[420281473,1775907109605,-533.900171,0.00016438,2]
[420281474,1775907109622,-533.900171,0.00016438,2]
[420281475,1775907109640,-533.900171,0.00016438,2]
[420281476,1775907109667,-533.900171,0.00016438,2]
[420281477,1775907109678,-533.900171,0.00016438,2]
[420281478,1775907109691,-533.900171,0.00016438,2]
[420281479,1775907109714,-533.900171,0.00016438,2]
[420281480,1775907109730,-533.900171,0.00016438,2]
[420281481,1775907109761,-533.900171,0.00016438,2]
[420281482,1775907109781,-533.900171,0.00016438,2]
[420281483,1775907109818,-533.900171,0.00016438,2]
[420281484,1775907109871,-533.900171,0.00016438,2]
[420281485,1775907109909,-533.900171,0.00016438,2]
[420281486,1775907109929,-533.900171,0.00016438,2]
[420281487,1775907109945,-533.900171,0.00016438,2]
[420281488,1775907109962,-533.900171,0.00016438,2]
[420281489,1775907109977,-533.900171,0.00016438,2]
[420281490,1775907109996,-533.900171,0.00016438,2]
[420281491,1775907110016,-533.900169,0.00016438,2]
[420281492,1775907110030,-2763.57,0.00016438,2]
[420281493,1775907110047,-9683.231887,0.00016438,2]
[420281494,1775907110067,-9683.231887,0.00016438,2]
[420281495,1775907110078,-9683.231887,0.00016438,2]
[420281496,1775907110088,-9683.231887,0.00016438,2]
[420281497,1775907110099,-9683.231887,0.00016438,2]
[420281498,1775907110121,-9683.231887,0.00016438,2]
[420281499,1775907110131,-9683.231887,0.00016438,2]
[420281500,1775907110150,-9683.231887,0.00016438,2]
[420281501,1775907110167,-9683.231887,0.00016438,2]
[420281502,1775907110178,-9683.231887,0.00016438,2]
[420281503,1775907110206,-9683.231887,0.00016438,2]
[420281504,1775907110221,-9683.231887,0.00016438,2]
[420281505,1775907110247,-9683.231887,0.00016438,2]
[420281506,1775907110264,-9683.231887,0.00016438,2]
[420281507,1775907110286,-9683.231887,0.00016438,2]
[420281508,1775907110298,-9683.231887,0.00016438,2]
[420281509,1775907110315,-9683.231887,0.00016438,2]
[420281510,1775907110331,-9683.231887,0.00016438,2]
[420281511,1775907110343,-9683.231887,0.00016438,2]
[420281512,1775907110354,-9683.231895,0.00016438,2]
[420281513,1775907110366,-151.0,0.00016438,2]
[420281514,1775907110380,-151.0,0.00016438,2]
[420281515,1775907110391,-151.0,0.00016438,2]
[420281516,1775907110402,-151.0,0.00016438,2]
[420281517,1775907110414,-151.0,0.00016438,2]
[420281518,1775907110427,-151.0,0.00016438,2]
[420281519,1775907110439,-151.0,0.00016438,2]
[420281520,1775907110450,-151.0,0.00016438,2]
[420281521,1775907110462,-151.0,0.00016438,2]
[420281522,1775907110472,-151.0,0.00016438,2]
[420281523,1775907110487,-151.0,0.00016438,2]
[420281524,1775907110498,-151.0,0.00016438,2]
[420281525,1775907110507,-151.0,0.00016438,2]
[420281526,1775907110516,-151.0,0.00016438,2]
[420281527,1775907110525,-151.0,0.00016438,2]
[420281528,1775907110534,-151.0,0.00016438,2]
[420281529,1775907110546,-151.0,0.00016438,2]
[420281530,1775907110555,-151.0,0.00016438,2]
[420281531,1775907110564,-151.0,0.00016438,2]
[420281532,1775907110573,-151.0,0.00016438,2]
[420281533,1775907110583,-151.0,0.00016438,2]
[420281534,1775907110593,-151.0,0.00016438,2]
[420281535,1775907110602,-183.954148,0.00016438,2]
[420281536,1775907110612,-150.0,0.00016438,2]
[420281537,1775907110621,-395.62,0.00016467,2]
[420281538,1775907110630,-3255.0,0.00016478,2]
[420281539,1775907110639,-500.0,0.00016484,2]
[420281540,1775907110648,-17040.90905002,0.000165,5]
[420281541,1775907110658,-6583.29898362,0.000165,2]
[420281542,1775907110667,-326.3662,0.000165,2]